[Event "Titled Tuesday Blitz August 22 Early 2023"]
[White "Jakubowski, Krzysztof"]
[Black "Pax-Pramana"]
[WhiteFideId "1112848"]
[WhiteElo "2651"]
[BlackElo "2478"]
[Result "1-0"]
[Round "5"]
[TimeControl "180+1"]
[Date "2023.08.22"]
[WhiteClock "0:00:50"]
[BlackClock "0:00:00"]
[Board "98"]

1. e4 {[%clk 0:03:00]}  e6 {[%clk 0:02:58]} 2. d3 {[%clk 0:02:58]}  d5 {[%clk 0:02:59]} 3. Nd2 {[%clk 0:02:58]}  Nf6 {[%clk 0:02:57]} 4. Ngf3 {[%clk 0:02:58]}  Nc6 {[%clk 0:02:56]} 5. a3 {[%clk 0:02:57]}  a5 {[%clk 0:02:56]} 6. e5 {[%clk 0:02:49]}  Nd7 {[%clk 0:02:49]} 7. d4 {[%clk 0:02:44]}  f6 {[%clk 0:02:49]} 8. Qe2 {[%clk 0:02:43]}  Be7 {[%clk 0:02:38]} 9. g3 {[%clk 0:02:40]}  O-O {[%clk 0:02:34]} 10. h4 {[%clk 0:02:38]}  b6 {[%clk 0:02:27]} 11. Bh3 {[%clk 0:02:36]}  f5 {[%clk 0:02:02]} 12. Qe3 {[%clk 0:02:21]}  Rf7 {[%clk 0:01:56]} 13. Ng5 {[%clk 0:01:58]}  Bxg5 {[%clk 0:01:55]} 14. hxg5 {[%clk 0:01:58]}  g6 {[%clk 0:01:55]} 15. f4 {[%clk 0:01:55]}  Ne7 {[%clk 0:01:44]} 16. O-O {[%clk 0:01:35]}  c5 {[%clk 0:01:43]} 17. c3 {[%clk 0:01:34]}  Ba6 {[%clk 0:01:43]} 18. Rf2 {[%clk 0:01:34]}  Rc8 {[%clk 0:01:42]} 19. Bf1 {[%clk 0:01:34]}  Bxf1 {[%clk 0:01:17]} 20. Nxf1 {[%clk 0:01:34]}  b5 {[%clk 0:01:04]} 21. Rh2 {[%clk 0:01:27]}  Qb6 {[%clk 0:01:00]} 22. Qf2 {[%clk 0:01:22]}  Nf8 {[%clk 0:00:47]} 23. Be3 {[%clk 0:01:22]}  c4 {[%clk 0:00:39]} 24. Bd2 {[%clk 0:01:17]}  Nc6 {[%clk 0:00:37]} 25. Ne3 {[%clk 0:01:16]}  Rcc7 {[%clk 0:00:35]} 26. g4 {[%clk 0:01:15]}  Ne7 {[%clk 0:00:34]} 27. gxf5 {[%clk 0:01:14]}  Nxf5 {[%clk 0:00:33]} 28. Ng4 {[%clk 0:01:14]}  Nd7 {[%clk 0:00:30]} 29. Kg2 {[%clk 0:01:12]}  Kf8 {[%clk 0:00:24]} 30. Rah1 {[%clk 0:01:10]}  Nb8 {[%clk 0:00:25]} 31. Qf3 {[%clk 0:01:05]}  Nc6 {[%clk 0:00:20]} 32. Nf6 {[%clk 0:01:05]}  b4 {[%clk 0:00:21]} 33. Nxh7+ {[%clk 0:01:01]}  Ke7 {[%clk 0:00:21]} 34. Nf6 {[%clk 0:01:00]}  bxc3 {[%clk 0:00:19]} 35. Rh8 {[%clk 0:00:54]}  Ng7 {[%clk 0:00:11]} 36. bxc3 {[%clk 0:00:52]}  Qb2 {[%clk 0:00:11]} 37. Qf2 {[%clk 0:00:52]}  Qxa3 {[%clk 0:00:11]} 38. Rg8 {[%clk 0:00:50]}  Nb8 {[%clk 0:00:09]} 39. Rhh8 {[%clk 0:00:50]}  Rxf6 {[%clk 0:00:00]} 40. gxf6+ {[%clk 0:00:50]} 1-0


[Site "https://www.chess.com"]

[Event "Titled Tuesday Blitz August 22 Early 2023"]
[White "Reprintsev, Alexander"]
[Black "Bulmaga, Irina"]
[WhiteFideId "14100541"]
[BlackFideId "13903063"]
[WhiteElo "2476"]
[BlackElo "2651"]
[Result "0-1"]
[Round "5"]
[TimeControl "180+1"]
[Date "2023.08.22"]
[WhiteClock "0:00:00"]
[BlackClock "0:01:02"]
[Board "99"]

1. e4 {[%clk 0:03:00]}  c5 {[%clk 0:02:56]} 2. Nf3 {[%clk 0:02:59]}  Nc6 {[%clk 0:02:55]} 3. d4 {[%clk 0:02:51]}  cxd4 {[%clk 0:02:56]} 4. Nxd4 {[%clk 0:02:51]}  e5 {[%clk 0:02:56]} 5. Nb5 {[%clk 0:02:49]}  d6 {[%clk 0:02:56]} 6. N1c3 {[%clk 0:02:47]}  a6 {[%clk 0:02:55]} 7. Na3 {[%clk 0:02:47]}  Nf6 {[%clk 0:02:53]} 8. Nd5 {[%clk 0:01:35]}  Be6 {[%clk 0:02:34]} 9. Nxf6+ {[%clk 0:01:31]}  Qxf6 {[%clk 0:02:35]} 10. c4 {[%clk 0:01:06]}  Qg6 {[%clk 0:02:32]} 11. f3 {[%clk 0:01:00]}  f5 {[%clk 0:02:30]} 12. exf5 {[%clk 0:00:57]}  Bxf5 {[%clk 0:02:30]} 13. g4 {[%clk 0:00:46]}  Bxg4 {[%clk 0:02:08]} 14. Rg1 {[%clk 0:00:44]}  Bxf3 {[%clk 0:01:58]} 15. Rxg6 {[%clk 0:00:38]}  Bxd1 {[%clk 0:01:57]} 16. Rg5 {[%clk 0:00:30]}  Bf3 {[%clk 0:01:52]} 17. Kf2 {[%clk 0:00:25]}  Be4 {[%clk 0:01:50]} 18. Bh3 {[%clk 0:00:21]}  h6 {[%clk 0:01:47]} 19. Rg1 {[%clk 0:00:19]}  g5 {[%clk 0:01:46]} 20. Be3 {[%clk 0:00:17]}  Be7 {[%clk 0:01:45]} 21. Be6 {[%clk 0:00:16]}  Rf8+ {[%clk 0:01:41]} 22. Ke2 {[%clk 0:00:14]}  Rf6 {[%clk 0:01:38]} 23. Bd5 {[%clk 0:00:13]}  Bxd5 {[%clk 0:01:36]} 24. cxd5 {[%clk 0:00:13]}  Nb4 {[%clk 0:01:34]} 25. Rgd1 {[%clk 0:00:13]}  Rc8 {[%clk 0:01:26]} 26. Rd2 {[%clk 0:00:13]}  b5 {[%clk 0:01:18]} 27. h4 {[%clk 0:00:12]}  g4 {[%clk 0:01:14]} 28. h5 {[%clk 0:00:11]}  Rf5 {[%clk 0:01:13]} 29. Rh1 {[%clk 0:00:10]}  Bg5 {[%clk 0:01:11]} 30. Bxg5 {[%clk 0:00:09]}  Rxg5 {[%clk 0:01:12]} 31. Kf2 {[%clk 0:00:07]}  Kd7 {[%clk 0:01:07]} 32. Kg3 {[%clk 0:00:07]}  Rc5 {[%clk 0:01:05]} 33. Rhd1 {[%clk 0:00:02]}  Rxh5 {[%clk 0:01:02]} 34. Kxg4 {[%clk 0:00:02]}  Rg5+ {[%clk 0:01:03]} 35. Kh4 {[%clk 0:00:00]}  e4 {[%clk 0:01:02]} 0-1


[Site "https://www.chess.com"]

[Event "Titled Tuesday Blitz August 22 Early 2023"]
[White "Bodnaruk, Anastasia"]
[Black "Dudzinski, Pawel"]
[WhiteFideId "4181751"]
[BlackFideId "1117890"]
[WhiteElo "2613"]
[BlackElo "2466"]
[Result "1-0"]
[Round "5"]
[TimeControl "180+1"]
[Date "2023.08.22"]
[WhiteClock "0:01:21"]
[BlackClock "0:00:00"]
[Board "104"]

1. e4 {[%clk 0:02:58]}  c6 {[%clk 0:02:47]} 2. d4 {[%clk 0:02:58]}  d5 {[%clk 0:02:48]} 3. e5 {[%clk 0:02:57]}  c5 {[%clk 0:02:47]} 4. c3 {[%clk 0:02:55]}  Nc6 {[%clk 0:02:47]} 5. Be2 {[%clk 0:02:54]}  cxd4 {[%clk 0:02:45]} 6. cxd4 {[%clk 0:02:53]}  Qb6 {[%clk 0:02:46]} 7. Nc3 {[%clk 0:02:51]}  e6 {[%clk 0:01:50]} 8. Nf3 {[%clk 0:02:50]}  Bb4 {[%clk 0:01:48]} 9. O-O {[%clk 0:02:49]}  Nge7 {[%clk 0:01:45]} 10. Na4 {[%clk 0:02:43]}  Qd8 {[%clk 0:01:44]} 11. a3 {[%clk 0:02:41]}  Ba5 {[%clk 0:01:44]} 12. b4 {[%clk 0:02:41]}  Bb6 {[%clk 0:01:36]} 13. Nc5 {[%clk 0:02:19]}  Bxc5 {[%clk 0:01:32]} 14. dxc5 {[%clk 0:02:05]}  Ng6 {[%clk 0:01:28]} 15. Bb2 {[%clk 0:02:03]}  Qc7 {[%clk 0:01:27]} 16. b5 {[%clk 0:01:59]}  Ncxe5 {[%clk 0:01:23]} 17. Nxe5 {[%clk 0:01:58]}  Nxe5 {[%clk 0:01:24]} 18. f4 {[%clk 0:01:54]}  Nd7 {[%clk 0:01:12]} 19. Bxg7 {[%clk 0:01:41]}  Rg8 {[%clk 0:01:11]} 20. Bd4 {[%clk 0:01:42]}  Nxc5 {[%clk 0:01:11]} 21. Qc2 {[%clk 0:01:38]}  b6 {[%clk 0:01:02]} 22. Qxh7 {[%clk 0:01:37]}  Rf8 {[%clk 0:00:36]} 23. Bg7 {[%clk 0:01:28]}  Bb7 {[%clk 0:00:37]} 24. Bxf8 {[%clk 0:01:24]}  Kxf8 {[%clk 0:00:38]} 25. f5 {[%clk 0:01:21]}  e5 {[%clk 0:00:00]} 26. f6 {[%clk 0:01:21]} 1-0


[Site "https://www.chess.com"]

[Event "Titled Tuesday Blitz August 22 Early 2023"]
[White "Liu, Casper"]
[Black "Ezat, Mohamed"]
[WhiteFideId "1454153"]
[BlackFideId "10600906"]
[WhiteElo "2459"]
[BlackElo "2579"]
[Result "0-1"]
[Round "5"]
[TimeControl "180+1"]
[Date "2023.08.22"]
[WhiteClock "0:00:00"]
[BlackClock "0:01:23"]
[Board "108"]

1. e4 {[%clk 0:03:00]}  e5 {[%clk 0:02:58]} 2. d4 {[%clk 0:03:01]}  exd4 {[%clk 0:02:57]} 3. Qxd4 {[%clk 0:03:02]}  Nc6 {[%clk 0:02:57]} 4. Qe3 {[%clk 0:03:02]}  Nf6 {[%clk 0:02:55]} 5. Nc3 {[%clk 0:03:03]}  Bb4 {[%clk 0:02:54]} 6. Bd2 {[%clk 0:03:03]}  O-O {[%clk 0:02:53]} 7. O-O-O {[%clk 0:03:04]}  Re8 {[%clk 0:02:53]} 8. Qf4 {[%clk 0:03:05]}  Bxc3 {[%clk 0:02:48]} 9. Bxc3 {[%clk 0:03:05]}  Nxe4 {[%clk 0:02:48]} 10. Bc4 {[%clk 0:03:04]}  Re7 {[%clk 0:02:10]} 11. Bxf7+ {[%clk 0:02:58]}  Kh8 {[%clk 0:02:09]} 12. Bd5 {[%clk 0:01:41]}  Nxc3 {[%clk 0:02:07]} 13. bxc3 {[%clk 0:01:42]}  d6 {[%clk 0:02:04]} 14. Nf3 {[%clk 0:01:41]}  Bd7 {[%clk 0:01:48]} 15. h4 {[%clk 0:01:18]}  Qf8 {[%clk 0:01:42]} 16. Qg3 {[%clk 0:01:03]}  Ne5 {[%clk 0:01:38]} 17. Ng5 {[%clk 0:00:48]}  c6 {[%clk 0:01:38]} 18. Be4 {[%clk 0:00:46]}  Bf5 {[%clk 0:01:35]} 19. Rxd6 {[%clk 0:00:30]}  Nc4 {[%clk 0:01:35]} 20. Rd4 {[%clk 0:00:26]}  b5 {[%clk 0:01:35]} 21. Bxf5 {[%clk 0:00:18]}  Qxf5 {[%clk 0:01:34]} 22. Rf4 {[%clk 0:00:12]}  Rae8 {[%clk 0:01:29]} 23. Rd1 {[%clk 0:00:00]}  Qc5 {[%clk 0:01:23]} 0-1


[Site "https://www.chess.com"]

[Event "Titled Tuesday Blitz August 22 Early 2023"]
[White "Derichs, Roger"]
[Black "Golubev, Mikhail"]
[WhiteFideId "4630076"]
[BlackFideId "14100983"]
[WhiteElo "2459"]
[BlackElo "2577"]
[Result "0-1"]
[Round "5"]
[TimeControl "180+1"]
[Date "2023.08.22"]
[WhiteClock "0:00:59"]
[BlackClock "0:00:47"]
[Board "109"]

1. Nf3 {[%clk 0:03:00]}  g6 {[%clk 0:02:55]} 2. c4 {[%clk 0:02:58]}  Bg7 {[%clk 0:02:55]} 3. Nc3 {[%clk 0:02:57]}  d6 {[%clk 0:02:55]} 4. d4 {[%clk 0:02:56]}  Nf6 {[%clk 0:02:55]} 5. e4 {[%clk 0:02:57]}  O-O {[%clk 0:02:55]} 6. Be3 {[%clk 0:02:57]}  e5 {[%clk 0:02:53]} 7. dxe5 {[%clk 0:02:57]}  dxe5 {[%clk 0:02:52]} 8. Qxd8 {[%clk 0:02:58]}  Rxd8 {[%clk 0:02:52]} 9. Nd5 {[%clk 0:02:58]}  Na6 {[%clk 0:02:50]} 10. O-O-O {[%clk 0:02:54]}  Bg4 {[%clk 0:02:20]} 11. h3 {[%clk 0:02:52]}  Bxf3 {[%clk 0:02:15]} 12. gxf3 {[%clk 0:02:53]}  c6 {[%clk 0:02:15]} 13. Nxf6+ {[%clk 0:02:46]}  Bxf6 {[%clk 0:02:15]} 14. Be2 {[%clk 0:02:45]}  Nc7 {[%clk 0:01:56]} 15. f4 {[%clk 0:02:29]}  exf4 {[%clk 0:01:53]} 16. Bxf4 {[%clk 0:02:29]}  Ne6 {[%clk 0:01:54]} 17. Be3 {[%clk 0:02:26]}  Bd4 {[%clk 0:01:51]} 18. Bxd4 {[%clk 0:02:18]}  Nxd4 {[%clk 0:01:50]} 19. Bd3 {[%clk 0:02:18]}  Ne6 {[%clk 0:01:45]} 20. Kc2 {[%clk 0:02:13]}  Kg7 {[%clk 0:01:43]} 21. Kc3 {[%clk 0:02:13]}  Kf6 {[%clk 0:01:43]} 22. h4 {[%clk 0:02:10]}  Nf4 {[%clk 0:01:33]} 23. c5 {[%clk 0:01:46]}  Ke5 {[%clk 0:01:24]} 24. f3 {[%clk 0:01:42]}  Ne6 {[%clk 0:01:15]} 25. Bc4 {[%clk 0:01:39]}  Nxc5 {[%clk 0:01:12]} 26. Bxf7 {[%clk 0:01:38]}  Rxd1 {[%clk 0:00:57]} 27. Rxd1 {[%clk 0:01:36]}  Rf8 {[%clk 0:00:56]} 28. f4+ {[%clk 0:00:59]}  Kxf4 {[%clk 0:00:47]} 0-1


[Site "https://www.chess.com"]

[Event "Titled Tuesday Blitz August 22 Early 2023"]
[White "Jia, Haoxiang"]
[Black "Swicarz, Maciej"]
[WhiteFideId "8602999"]
[BlackFideId "1113585"]
[WhiteElo "2576"]
[BlackElo "2459"]
[Result "0-1"]
[Round "5"]
[TimeControl "180+1"]
[Date "2023.08.22"]
[WhiteClock "0:00:00"]
[BlackClock "0:00:59"]
[Board "110"]

1. d4 {[%clk 0:02:57]}  Nf6 {[%clk 0:02:59]} 2. Bf4 {[%clk 0:02:56]}  d5 {[%clk 0:02:58]} 3. e3 {[%clk 0:02:56]}  c5 {[%clk 0:02:58]} 4. c3 {[%clk 0:02:56]}  Nc6 {[%clk 0:02:57]} 5. Nf3 {[%clk 0:02:54]}  Qb6 {[%clk 0:02:55]} 6. Qb3 {[%clk 0:02:51]}  c4 {[%clk 0:02:55]} 7. Qc2 {[%clk 0:02:42]}  Bf5 {[%clk 0:02:54]} 8. Qc1 {[%clk 0:02:43]}  Nh5 {[%clk 0:02:46]} 9. Bg5 {[%clk 0:02:33]}  h6 {[%clk 0:02:43]} 10. Bh4 {[%clk 0:02:34]}  g5 {[%clk 0:02:43]} 11. Bg3 {[%clk 0:02:34]}  e6 {[%clk 0:02:39]} 12. Nbd2 {[%clk 0:02:32]}  Nxg3 {[%clk 0:02:29]} 13. hxg3 {[%clk 0:02:31]}  Bg7 {[%clk 0:02:29]} 14. b3 {[%clk 0:02:22]}  cxb3 {[%clk 0:02:28]} 15. axb3 {[%clk 0:02:21]}  Rc8 {[%clk 0:02:28]} 16. Qb2 {[%clk 0:02:19]}  a6 {[%clk 0:02:26]} 17. Be2 {[%clk 0:02:13]}  Qc7 {[%clk 0:02:23]} 18. O-O {[%clk 0:01:58]}  O-O {[%clk 0:02:19]} 19. Rfc1 {[%clk 0:01:52]}  Qb6 {[%clk 0:02:16]} 20. b4 {[%clk 0:01:44]}  Na7 {[%clk 0:02:14]} 21. c4 {[%clk 0:01:21]}  dxc4 {[%clk 0:02:13]} 22. Nxc4 {[%clk 0:01:21]}  Qd8 {[%clk 0:02:10]} 23. Na5 {[%clk 0:01:09]}  Qe7 {[%clk 0:02:09]} 24. b5 {[%clk 0:00:49]}  Nxb5 {[%clk 0:02:07]} 25. Bxb5 {[%clk 0:00:48]}  axb5 {[%clk 0:02:08]} 26. Qxb5 {[%clk 0:00:49]}  Be4 {[%clk 0:02:06]} 27. Ne5 {[%clk 0:00:41]}  Bd5 {[%clk 0:01:48]} 28. Nd7 {[%clk 0:00:27]}  Rxc1+ {[%clk 0:01:34]} 29. Rxc1 {[%clk 0:00:26]}  Rd8 {[%clk 0:01:16]} 30. Nc5 {[%clk 0:00:15]}  e5 {[%clk 0:01:03]} 31. dxe5 {[%clk 0:00:05]}  Qxe5 {[%clk 0:01:00]} 32. Ncxb7 {[%clk 0:00:00]}  Qe4 {[%clk 0:00:59]} 0-1


[Site "https://www.chess.com"]

[Event "Titled Tuesday Blitz August 22 Early 2023"]
[White "Fule, Simon"]
[Black "Colas, Joshua"]
[WhiteFideId "787515"]
[BlackFideId "2044447"]
[WhiteElo "2459"]
[BlackElo "2575"]
[Result "1-0"]
[Round "5"]
[TimeControl "180+1"]
[Date "2023.08.22"]
[WhiteClock "0:00:02"]
[BlackClock "0:00:04"]
[Board "111"]

1. e4 {[%clk 0:03:00]}  e6 {[%clk 0:02:55]} 2. d4 {[%clk 0:03:01]}  d5 {[%clk 0:02:56]} 3. Nc3 {[%clk 0:03:01]}  dxe4 {[%clk 0:02:56]} 4. Nxe4 {[%clk 0:03:01]}  Nf6 {[%clk 0:02:56]} 5. Bd3 {[%clk 0:03:00]}  Nc6 {[%clk 0:02:54]} 6. Nf3 {[%clk 0:02:58]}  Be7 {[%clk 0:02:53]} 7. O-O {[%clk 0:02:54]}  O-O {[%clk 0:02:52]} 8. Ng3 {[%clk 0:02:53]}  b6 {[%clk 0:02:49]} 9. Re1 {[%clk 0:02:52]}  Bb7 {[%clk 0:02:42]} 10. c3 {[%clk 0:02:50]}  Re8 {[%clk 0:02:35]} 11. h3 {[%clk 0:02:35]}  Bd6 {[%clk 0:02:33]} 12. Qc2 {[%clk 0:01:56]}  h6 {[%clk 0:02:31]} 13. Bd2 {[%clk 0:01:47]}  e5 {[%clk 0:02:28]} 14. dxe5 {[%clk 0:00:45]}  Nxe5 {[%clk 0:01:54]} 15. Nxe5 {[%clk 0:00:45]}  Bxe5 {[%clk 0:01:36]} 16. Rad1 {[%clk 0:00:45]}  Bxg3 {[%clk 0:01:17]} 17. fxg3 {[%clk 0:00:46]}  Qd5 {[%clk 0:01:11]} 18. Rxe8+ {[%clk 0:00:35]}  Rxe8 {[%clk 0:00:59]} 19. Bf4 {[%clk 0:00:34]}  Qxa2 {[%clk 0:00:55]} 20. Bxc7 {[%clk 0:00:29]}  Nd5 {[%clk 0:00:54]} 21. Bf4 {[%clk 0:00:25]}  Qa5 {[%clk 0:00:33]} 22. Qf2 {[%clk 0:00:20]}  Qa4 {[%clk 0:00:22]} 23. Bc2 {[%clk 0:00:18]}  Qc4 {[%clk 0:00:23]} 24. Rd4 {[%clk 0:00:13]}  Qe2 {[%clk 0:00:23]} 25. Qxe2 {[%clk 0:00:11]}  Rxe2 {[%clk 0:00:24]} 26. Bb3 {[%clk 0:00:07]}  Nxf4 {[%clk 0:00:23]} 27. gxf4 {[%clk 0:00:06]}  Rxg2+ {[%clk 0:00:24]} 28. Kf1 {[%clk 0:00:06]}  Rxb2 {[%clk 0:00:25]} 29. Bxf7+ {[%clk 0:00:06]}  Kxf7 {[%clk 0:00:22]} 30. Rd7+ {[%clk 0:00:06]}  Kf6 {[%clk 0:00:23]} 31. Rxb7 {[%clk 0:00:07]}  a5 {[%clk 0:00:23]} 32. c4 {[%clk 0:00:06]}  a4 {[%clk 0:00:24]} 33. c5 {[%clk 0:00:07]}  a3 {[%clk 0:00:24]} 34. c6 {[%clk 0:00:05]}  a2 {[%clk 0:00:24]} 35. Ra7 {[%clk 0:00:06]}  Rb1+ {[%clk 0:00:24]} 36. Kf2 {[%clk 0:00:06]}  a1=Q {[%clk 0:00:25]} 37. Rxa1 {[%clk 0:00:06]}  Rxa1 {[%clk 0:00:26]} 38. c7 {[%clk 0:00:06]}  Rd1 {[%clk 0:00:27]} 39. c8=Q {[%clk 0:00:06]}  Rd6 {[%clk 0:00:27]} 40. Qc7 {[%clk 0:00:06]}  Re6 {[%clk 0:00:27]} 41. Qd8+ {[%clk 0:00:06]}  Kf7 {[%clk 0:00:27]} 42. f5 {[%clk 0:00:05]}  Rf6 {[%clk 0:00:28]} 43. Qd7+ {[%clk 0:00:05]}  Kg8 {[%clk 0:00:28]} 44. Ke3 {[%clk 0:00:05]}  Kh7 {[%clk 0:00:27]} 45. h4 {[%clk 0:00:05]}  Kg8 {[%clk 0:00:26]} 46. h5 {[%clk 0:00:05]}  Kh7 {[%clk 0:00:27]} 47. Ke4 {[%clk 0:00:05]}  Kg8 {[%clk 0:00:28]} 48. Ke5 {[%clk 0:00:06]}  Kh7 {[%clk 0:00:28]} 49. Qe8 {[%clk 0:00:05]}  b5 {[%clk 0:00:18]} 50. Qxb5 {[%clk 0:00:05]}  Kg8 {[%clk 0:00:18]} 51. Qe8+ {[%clk 0:00:05]}  Kh7 {[%clk 0:00:18]} 52. Qe7 {[%clk 0:00:03]}  Ra6 {[%clk 0:00:18]} 53. Qe6 {[%clk 0:00:02]}  Ra5+ {[%clk 0:00:17]} 54. Kd6 {[%clk 0:00:02]}  Ra6+ {[%clk 0:00:17]} 55. Ke7 {[%clk 0:00:02]}  Ra7+ {[%clk 0:00:16]} 56. Kf8 {[%clk 0:00:03]}  Ra8+ {[%clk 0:00:16]} 57. Kf7 {[%clk 0:00:03]}  Ra7+ {[%clk 0:00:16]} 58. Ke8 {[%clk 0:00:04]}  Ra8+ {[%clk 0:00:16]} 59. Kd7 {[%clk 0:00:04]}  Ra7+ {[%clk 0:00:17]} 60. Kc8 {[%clk 0:00:05]}  Ra8+ {[%clk 0:00:13]} 61. Kb7 {[%clk 0:00:05]}  Rf8 {[%clk 0:00:14]} 62. Qg6+ {[%clk 0:00:05]}  Kg8 {[%clk 0:00:14]} 63. Kc7 {[%clk 0:00:03]}  Rf7+ {[%clk 0:00:10]} 64. Kd8 {[%clk 0:00:02]}  Kf8 {[%clk 0:00:04]} 65. Qh7 {[%clk 0:00:02]}  Rf6 {[%clk 0:00:03]} 66. Qh8+ {[%clk 0:00:02]}  Kf7 {[%clk 0:00:04]} 67. Qe8# {[%clk 0:00:02]} 1-0


[Site "https://www.chess.com"]

[Event "Titled Tuesday Blitz August 22 Early 2023"]
[White "Siniauski, Artsiom"]
[Black "Arencibia Monduy, Antonio"]
[WhiteFideId "13512269"]
[BlackFideId "3507939"]
[WhiteElo "2561"]
[BlackElo "2444"]
[Result "1-0"]
[Round "5"]
[TimeControl "180+1"]
[Date "2023.08.22"]
[WhiteClock "0:00:46"]
[BlackClock "0:00:00"]
[Board "116"]

1. e4 {[%clk 0:03:00]}  c5 {[%clk 0:02:58]} 2. Nf3 {[%clk 0:03:00]}  d6 {[%clk 0:02:59]} 3. Bb5+ {[%clk 0:02:58]}  Bd7 {[%clk 0:02:58]} 4. Bxd7+ {[%clk 0:02:58]}  Qxd7 {[%clk 0:02:58]} 5. c4 {[%clk 0:02:57]}  Nc6 {[%clk 0:02:58]} 6. Nc3 {[%clk 0:02:57]}  g6 {[%clk 0:02:59]} 7. d4 {[%clk 0:02:54]}  cxd4 {[%clk 0:02:58]} 8. Nxd4 {[%clk 0:02:55]}  Bg7 {[%clk 0:02:58]} 9. Be3 {[%clk 0:02:54]}  Nxd4 {[%clk 0:02:56]} 10. Bxd4 {[%clk 0:02:54]}  Nf6 {[%clk 0:02:56]} 11. O-O {[%clk 0:02:53]}  O-O {[%clk 0:02:56]} 12. Rc1 {[%clk 0:02:53]}  a6 {[%clk 0:02:55]} 13. a4 {[%clk 0:02:51]}  Rac8 {[%clk 0:02:55]} 14. b3 {[%clk 0:02:46]}  Qc6 {[%clk 0:02:34]} 15. Qd3 {[%clk 0:02:39]}  Rfe8 {[%clk 0:02:34]} 16. f3 {[%clk 0:02:34]}  Nd7 {[%clk 0:02:30]} 17. Bxg7 {[%clk 0:02:31]}  Kxg7 {[%clk 0:02:31]} 18. Nd5 {[%clk 0:02:29]}  Kg8 {[%clk 0:02:24]} 19. h4 {[%clk 0:02:22]}  Nb6 {[%clk 0:02:12]} 20. h5 {[%clk 0:02:15]}  Nxd5 {[%clk 0:02:11]} 21. exd5 {[%clk 0:02:16]}  Qc5+ {[%clk 0:01:58]} 22. Kh1 {[%clk 0:02:14]}  e5 {[%clk 0:01:44]} 23. Qc3 {[%clk 0:01:54]}  b5 {[%clk 0:01:28]} 24. f4 {[%clk 0:01:31]}  bxc4 {[%clk 0:01:28]} 25. bxc4 {[%clk 0:01:31]}  f5 {[%clk 0:00:29]} 26. Rfe1 {[%clk 0:01:06]}  exf4 {[%clk 0:00:20]} 27. h6 {[%clk 0:01:04]}  Qc7 {[%clk 0:00:18]} 28. Qf6 {[%clk 0:00:58]}  Qf7 {[%clk 0:00:15]} 29. Qxd6 {[%clk 0:00:58]}  Rxe1+ {[%clk 0:00:05]} 30. Rxe1 {[%clk 0:00:58]}  Qf8 {[%clk 0:00:01]} 31. Qe6+ {[%clk 0:00:44]}  Kh8 {[%clk 0:00:01]} 32. Qe5+ {[%clk 0:00:45]}  Kg8 {[%clk 0:00:00]} 33. Qxf4 {[%clk 0:00:46]} 1-0


[Site "https://www.chess.com"]

[Event "Titled Tuesday Blitz August 22 Early 2023"]
[White "Farmani Anosheh, Armin"]
[Black "Shukhman, Anna"]
[WhiteFideId "24613240"]
[BlackFideId "54180058"]
[WhiteElo "2431"]
[BlackElo "2556"]
[Result "0-1"]
[Round "5"]
[TimeControl "180+1"]
[Date "2023.08.22"]
[WhiteClock "0:00:05"]
[BlackClock "0:01:49"]
[Board "121"]

1. e4 {[%clk 0:03:00]}  c5 {[%clk 0:02:59]} 2. Nf3 {[%clk 0:03:01]}  a6 {[%clk 0:02:58]} 3. c4 {[%clk 0:02:57]}  Nc6 {[%clk 0:02:57]} 4. d4 {[%clk 0:02:56]}  cxd4 {[%clk 0:02:57]} 5. Nxd4 {[%clk 0:02:56]}  Nf6 {[%clk 0:02:58]} 6. Nc3 {[%clk 0:02:56]}  e5 {[%clk 0:02:57]} 7. Nc2 {[%clk 0:02:56]}  Bc5 {[%clk 0:02:53]} 8. Be2 {[%clk 0:02:55]}  d6 {[%clk 0:02:52]} 9. O-O {[%clk 0:02:55]}  Be6 {[%clk 0:02:52]} 10. Rb1 {[%clk 0:02:27]}  Rc8 {[%clk 0:02:44]} 11. b4 {[%clk 0:02:10]}  Ba7 {[%clk 0:02:44]} 12. Nd5 {[%clk 0:01:59]}  Nxe4 {[%clk 0:02:40]} 13. Qd3 {[%clk 0:01:26]}  Nf6 {[%clk 0:02:23]} 14. Bg5 {[%clk 0:01:21]}  Bxd5 {[%clk 0:02:23]} 15. Bxf6 {[%clk 0:01:05]}  Qxf6 {[%clk 0:02:22]} 16. Qxd5 {[%clk 0:01:04]}  O-O {[%clk 0:02:19]} 17. Rbd1 {[%clk 0:00:46]}  Rfd8 {[%clk 0:02:18]} 18. Bg4 {[%clk 0:00:47]}  Ne7 {[%clk 0:02:11]} 19. Qxb7 {[%clk 0:00:43]}  Rxc4 {[%clk 0:02:11]} 20. Na3 {[%clk 0:00:22]}  Rxg4 {[%clk 0:02:10]} 21. Qxa7 {[%clk 0:00:22]}  Qf3 {[%clk 0:01:58]} 22. g3 {[%clk 0:00:22]}  Nf5 {[%clk 0:01:54]} 23. Nc4 {[%clk 0:00:14]}  Rxc4 {[%clk 0:01:52]} 24. Qxa6 {[%clk 0:00:08]}  Nh4 {[%clk 0:01:51]} 25. Qb7 {[%clk 0:00:05]}  Qxb7 {[%clk 0:01:49]} 0-1


[Site "https://www.chess.com"]

[Event "Titled Tuesday Blitz August 22 Early 2023"]
[White "Goldin, Roman"]
[Black "To, Nhat Minh"]
[WhiteFideId "2803860"]
[BlackFideId "729019"]
[WhiteElo "2430"]
[BlackElo "2546"]
[Result "0-1"]
[Round "5"]
[TimeControl "180+1"]
[Date "2023.08.22"]
[WhiteClock "0:00:00"]
[BlackClock "0:00:57"]
[Board "122"]

1. e4 {[%clk 0:02:58]}  c5 {[%clk 0:03:00]} 2. Nf3 {[%clk 0:02:58]}  d6 {[%clk 0:03:00]} 3. Bc4 {[%clk 0:02:58]}  Nf6 {[%clk 0:03:00]} 4. e5 {[%clk 0:02:58]}  dxe5 {[%clk 0:03:00]} 5. Nxe5 {[%clk 0:02:59]}  e6 {[%clk 0:03:01]} 6. Qe2 {[%clk 0:02:59]}  a6 {[%clk 0:02:57]} 7. a4 {[%clk 0:02:58]}  Bd6 {[%clk 0:02:57]} 8. f4 {[%clk 0:02:57]}  Qc7 {[%clk 0:02:56]} 9. d3 {[%clk 0:02:57]}  Nc6 {[%clk 0:02:56]} 10. Nxc6 {[%clk 0:02:56]}  Qxc6 {[%clk 0:02:57]} 11. O-O {[%clk 0:02:30]}  O-O {[%clk 0:02:57]} 12. Nc3 {[%clk 0:02:28]}  b6 {[%clk 0:02:57]} 13. Bd2 {[%clk 0:02:18]}  Bb7 {[%clk 0:02:57]} 14. Rae1 {[%clk 0:02:15]}  Rad8 {[%clk 0:02:52]} 15. Rf3 {[%clk 0:02:08]}  Nd5 {[%clk 0:02:48]} 16. Ne4 {[%clk 0:01:48]}  b5 {[%clk 0:02:40]} 17. Ba2 {[%clk 0:01:38]}  Be7 {[%clk 0:02:35]} 18. axb5 {[%clk 0:01:31]}  axb5 {[%clk 0:02:36]} 19. c3 {[%clk 0:01:27]}  Nf6 {[%clk 0:02:31]} 20. Ng5 {[%clk 0:01:14]}  c4 {[%clk 0:02:24]} 21. Bb1 {[%clk 0:00:45]}  h6 {[%clk 0:02:08]} 22. Nh3 {[%clk 0:00:40]}  cxd3 {[%clk 0:01:57]} 23. Rxd3 {[%clk 0:00:33]}  Rxd3 {[%clk 0:01:51]} 24. Bxd3 {[%clk 0:00:33]}  Rd8 {[%clk 0:01:52]} 25. Bc2 {[%clk 0:00:24]}  Bc5+ {[%clk 0:01:44]} 26. Kf1 {[%clk 0:00:12]}  Ng4 {[%clk 0:01:35]} 27. Qxg4 {[%clk 0:00:05]}  Rxd2 {[%clk 0:01:36]} 28. Be4 {[%clk 0:00:04]}  Qd7 {[%clk 0:01:23]} 29. Qf3 {[%clk 0:00:04]}  Bxe4 {[%clk 0:01:13]} 30. Qxe4 {[%clk 0:00:04]}  Rxb2 {[%clk 0:01:08]} 31. f5 {[%clk 0:00:03]}  exf5 {[%clk 0:00:57]} 32. Qe8+ {[%clk 0:00:03]}  Qxe8 {[%clk 0:00:56]} 33. Rxe8+ {[%clk 0:00:00]}  Kh7 {[%clk 0:00:57]} 0-1


[Site "https://www.chess.com"]